lending/lending_fUSD_20251218
["ID","MTS","AMOUNT","RATE_DAILY","PERIOD"]
[399008113,1766065863094,-500.0,0.00041095,120]
[399008114,1766065863104,-581.53,0.00041095,120]
[399008115,1766065863115,-500.0,0.00041095,120]
[399008116,1766065863127,-422.73071805,0.00041095,120]
[399008117,1766065863140,-500.0,0.00041095,120]
[399008118,1766065863150,-500.0,0.00041095,120]
[399008119,1766065863161,-233.97,0.00041095,120]
[399008120,1766065863171,-500.0,0.00041095,120]
[399008121,1766065863182,-534.98,0.00041095,120]
[399008122,1766065863191,-500.0,0.00041095,120]
[399008123,1766065863202,-496.98,0.00041095,120]
[399008124,1766065863212,-135.10380019,0.00041095,120]
[399008125,1766065863243,-364.89619981,0.00041095,120]
[399008126,1766065863254,-17.68881051,0.00041095,120]
[399008169,1766066546795,-199.612,0.00020579,2]
[399008170,1766066687009,-329.7674,0.00020899,2]
[399008171,1766066687041,-177.2954573,0.00020899,2]
[399008172,1766066687075,-1622.37630312,0.00020899,2]
[399008173,1766066687113,-2098.36389569,0.00020899,2]
[399008174,1766066687147,-163.2625451,0.00020899,2]
[399008175,1766066687181,-362.0,0.00020997,2]
[399008176,1766066687212,-193.87879758,0.00020997,2]
[399008178,1766066693828,-106.12120242,0.00020997,2]
[399008179,1766066693864,-500.0,0.00020998,2]
[399008180,1766066693895,-500.0,0.00020998,2]
[399008181,1766066693926,-262.92955629,0.00020998,2]
[399008182,1766066693961,-465.7396095,0.00020998,2]
[399008183,1766066693997,-500.0,0.00020998,2]
[399008184,1766066694033,-500.0,0.00020998,2]
[399008185,1766066694068,-500.0,0.00020998,2]
[399008186,1766066694105,-500.0,0.00020998,2]
[399008187,1766066694140,-500.0,0.00020998,2]
[399008188,1766066694176,-500.0,0.00020998,2]
[399008189,1766066699075,-3583.46,0.00020998,2]
[399008221,1766067031751,-300.0,0.00020898,2]
[399008222,1766067031762,-298.44007945,0.00020898,2]
[399008223,1766067031773,-1.55992055,0.00020898,2]
[399008224,1766067031783,-1200.0,0.00020898,2]
[399008225,1766067031794,-86098.46419171,0.00020899,2]
[399008226,1766067031806,-500.7299905,0.00020899,2]
[399008227,1766067031821,-186342.33552524,0.00020899,2]
[399008234,1766067037641,-500.0,0.00020898,2]
[399008235,1766067037651,-229.99824922,0.00020898,2]
[399008236,1766067037753,-270.00175078,0.00020898,2]
[399008237,1766067037763,-500.0,0.00020898,2]
[399008238,1766067037772,-517.85955711,0.00020898,2]
[399008239,1766067037782,-139405.95751173,0.00020899,2]
[399008240,1766067037811,-12987.04402191,0.00020899,2]
[399008241,1766067037822,-6180.06466264,0.00020899,2]
[399008242,1766067037834,-6482.88221364,0.00020899,2]
[399008263,1766067039715,-1562.10545261,0.00020899,2]
[399008264,1766067039726,-891.84,0.00020899,2]
[399008322,1766067043551,-22467.21539754,0.00020899,2]
[399008323,1766067043566,-661.03999474,0.00020899,2]
[399008324,1766067043578,-446.625,0.00020899,2]
[399008370,1766067045723,-23821.54109994,0.00020899,2]
[399008371,1766067045917,-1493.43230255,0.00020899,2]
[399008380,1766067960953,4450.97516543,8e-05,2]
[399008381,1766067974914,169.23,0.00013699,2]
[399008394,1766068014834,5000.00080507,0.000162,5]
[399008401,1766068117684,6407.78730378,0.00016,4]
[399008402,1766068118271,10137.42458002,0.0001,2]
[399008425,1766068207980,-300.0,0.00015999,2]
[399008426,1766068208013,-1200.0,0.00015999,2]
[399008439,1766068233147,-1122.889772,0.00016,4]
[399008443,1766068237715,-735.85953622,0.00016,4]
[399008444,1766068237832,-5166.6679344,0.00016,4]
[399008445,1766068237844,-9361.95410601,0.00016,4]
[399008446,1766068237892,-88500.0,0.00016,4]
[399008447,1766068237952,-349.19103012,0.00016,4]
[399008450,1766068239738,-14633.99161595,0.00016,4]
[399008452,1766068239752,-11498.28300968,0.00017,2]
[399008453,1766068239909,-1579.56364063,0.00017,2]
[399008454,1766068239922,-3333.62173229,0.00017,2]
[399008455,1766068239932,-785.864716,0.00017,2]
[399008456,1766068239977,-3586.45661525,0.00017,2]
[399008457,1766068239987,-294.0,0.00017,2]
[399008458,1766068239997,-247.2565662,0.00017492,2]
[399008459,1766068240120,-172.7434338,0.00017492,2]
[399008460,1766068240129,-286.16826792,0.0001758,2]
[399008461,1766068240141,-1393.83173208,0.0001758,2]
[399008462,1766068240150,-313.85712232,0.000176,2]
[399008463,1766068240160,-307.0,0.00019125,2]
[399008464,1766068240169,-2351.0,0.00019317,2]
[399008465,1766068240178,-415.21734206,0.0002,2]
[399008466,1766068240187,-199.48447556,0.00020087,2]
[399008467,1766068240197,-169.23,0.00020187,2]
[399008468,1766068240206,-2211.76744917,0.00020699,2]
[399008469,1766068240215,-154.05082994,0.00020699,2]
[399008470,1766068240225,-161.65468861,0.00020699,2]
[399008471,1766068240234,-195.0,0.00020724,2]
[399008472,1766068240243,-450.97179572,0.00020798,2]
[399008473,1766068240253,-500.0,0.00020798,2]
[399008474,1766068240262,-500.0,0.00020798,2]
[399008475,1766068240272,-500.0,0.00020798,2]
[399008476,1766068240282,-500.0,0.00020798,2]
[399008477,1766068240291,-500.0,0.00020798,2]
[399008478,1766068240301,-500.0,0.00020798,2]
[399008479,1766068240311,-500.0,0.00020798,2]
[399008480,1766068240320,-500.0,0.00020798,2]
[399008481,1766068240333,-500.0,0.00020798,2]
[399008482,1766068240342,-500.0,0.00020798,2]
[399008483,1766068240351,-527.94814067,0.00020798,2]
[399008484,1766068240361,-500.0,0.00020798,2]
[399008485,1766068240370,-383.48642369,0.00020798,2]
[399008486,1766068240382,-116.5135763,0.00020798,2]
[399008487,1766068240391,-241.16282821,0.00020799,2]
[399008500,1766068244195,-3086.11320278,0.00020799,2]
[399008514,1766068245878,-14956.00739838,0.00020799,2]
[399008515,1766068245890,-5524.0,0.00020799,2]
[399008516,1766068245997,-864192.71657063,0.00020799,2]
[399008517,1766068246007,-1660.43204361,0.00020799,2]
[399008518,1766068246017,-165.0,0.000208,2]
[399008519,1766068246026,-442.73435197,0.00020898,2]
[399008520,1766068246035,-26009.11703965,0.00020899,2]
[399008521,1766068246234,-2416.01045691,0.00020899,2]
[399008522,1766068246299,-1477.64237697,0.00020899,2]
[399008672,1766068423519,4745.0,0.00023,120]
[399008673,1766068453781,2000.0,0.00023,120]
[399008674,1766068470271,2000.0,0.00023,120]
[399008680,1766068493908,2000.0,0.00022,30]
[399008711,1766068785844,244.64,0.00012005,2]
[399008766,1766069432492,-278.95057791,0.00012636,2]
[399008767,1766069432503,-250.0,0.00012636,2]
[399008768,1766069432512,-244.64,0.00012636,2]
[399008769,1766069432523,-250.0,0.00012933,2]
[399008770,1766069432531,-244.64,0.00013268,2]
[399008771,1766069432541,-195.0,0.000139,2]
[399008772,1766069432550,-250.0,0.000139,2]
[399008773,1766069432559,-195.0,0.000139,2]
[399008774,1766069432568,-195.0,0.000139,2]
[399008775,1766069432577,-244.64,0.000139,2]
[399008776,1766069432587,-244.64,0.00014532,2]
[399008777,1766069432596,-244.64,0.00015164,2]
[399008778,1766069432605,-244.64,0.00015796,2]
[399008779,1766069432614,-244.64,0.00016428,2]
[399008780,1766069432623,-1712.98475641,0.00016612,2]
[399008781,1766069432633,-300.0,0.0001671,2]
[399008782,1766069432642,-300.0,0.0001671,2]
[399008783,1766069432652,-1200.0,0.0001671,2]
[399008784,1766069432661,-1200.0,0.00016711,2]
[399008785,1766069432670,-999.99,0.00016712,2]
[399008786,1766069432680,-1219.12745096,0.00016712,2]
[399008787,1766069432692,-255.28254904,0.00016712,2]
[399008788,1766069432701,-1102.4,0.00016712,2]
[399008789,1766069432711,-3042.76745096,0.00016712,2]
[399008790,1766069432722,-1179.72254904,0.00016712,2]
[399008791,1766069432732,-155.32,0.00016712,2]
[399008792,1766069432742,-244.64,0.00017059,2]
[399008793,1766069432751,-244.64,0.00017691,2]
[399008794,1766069432760,-1022.65161655,0.00018001,2]
[399008795,1766069432770,-1712.9847564,0.0001805,2]
[399008796,1766069432780,-420.0,0.00018256,2]
[399008797,1766069432790,-420.0,0.00018256,2]
[399008798,1766069432799,-244.64,0.00018323,2]
[399008799,1766069432809,-1680.0,0.00018347,2]
[399008800,1766069432818,-923.0,0.00018675,2]
[399008801,1766069432827,-788.0,0.00018919,2]
[399008802,1766069432836,-244.64,0.00018955,2]
[399008803,1766069432846,-1712.9847564,0.00019487,2]
[399008804,1766069432855,-244.64,0.00019587,2]
[399008805,1766069432864,-167.0,0.00019946,2]
[399008806,1766069432873,-2351.0,0.00020145,2]
[399008807,1766069432883,-150.0,0.000202,2]
[399008808,1766069432892,-1249.37253302,0.00020209,2]
[399008809,1766069432903,-276.65889505,0.00020209,2]
[399008810,1766069432915,-448.33985673,0.00020209,2]
[399008811,1766069432924,-244.64,0.00020219,2]
[399008812,1766069432934,-3644.03269795,0.00020631,2]
[399008813,1766069432945,-437.04724884,0.00020631,2]
[399008814,1766069432957,-583.18548524,0.00020631,2]
[399008815,1766069432968,-5754.97029768,0.00020631,2]
[399008816,1766069432980,-9044.08427796,0.00020631,2]
[399008817,1766069432999,-298.02975,0.00020631,2]
[399008818,1766069433010,-590.2430935,0.00020631,2]
[399008819,1766069433023,-250.0,0.00020631,2]
[399008820,1766069433035,-396.09815507,0.00020631,2]
[399008822,1766069437992,-3887.95899376,0.00020631,2]
[399008823,1766069438003,-200.0,0.00020786,2]
[399008824,1766069438012,-200.0,0.00020794,2]
[399008825,1766069438022,-500.0,0.00020798,2]
[399008826,1766069438031,-500.0,0.00020798,2]
[399008827,1766069438042,-500.0,0.00020798,2]
[399008828,1766069438051,-515.45477873,0.00020798,2]
[399008829,1766069438062,-500.0,0.00020798,2]
[399008830,1766069438071,-500.0,0.00020798,2]
[399008831,1766069438081,-85.95077428,0.00020798,2]
[399008832,1766069438092,-414.04922572,0.00020798,2]
[399008833,1766069438102,-500.0,0.00020798,2]
[399008834,1766069438111,-515.22,0.00020798,2]
[399008835,1766069438121,-614.99,0.00020798,2]
[399008836,1766069438131,-500.0,0.00020798,2]
[399008837,1766069438140,-244.64,0.0002085,2]
[399008838,1766069438149,-2000.0,0.00020899,2]
[399008840,1766069438159,-592.17006311,0.00020899,2]
[399008842,1766069438170,-1407.82993689,0.00020899,2]
[399008844,1766069438180,-1168.26156311,0.00020899,2]
[399008846,1766069438191,-592.63366014,0.00020899,2]
[399008848,1766069438203,-239.10477675,0.00020899,2]
[399008851,1766069438218,-2000.0,0.00020899,2]
[399008852,1766069438228,-505.5954384,0.00020899,2]
[399008855,1766069438241,-489.31872858,0.00020899,2]
[399008896,1766069439940,-1005.08583302,0.00020899,2]
[399008897,1766069439951,-2000.0,0.00020899,2]
[399008898,1766069439961,-2000.0,0.00020899,2]
[399008899,1766069439971,-2000.0,0.00020899,2]
[399008900,1766069439982,-2000.0,0.00020899,2]
[399008901,1766069439995,-2000.0,0.00020899,2]
[399008902,1766069440004,-2000.0,0.00020899,2]
[399008903,1766069440014,-1712.9847564,0.00020925,2]
[399008904,1766069440035,-2833.09,0.00020998,2]
[399008905,1766069440046,-168.0,0.0002117,2]
[399008906,1766069440056,-168.0,0.00021195,2]
[399008907,1766069440066,-168.0,0.0002141,2]
[399008908,1766069440075,-244.64,0.00021482,2]
[399008909,1766069440086,-1000.0,0.00021485,2]
[399008910,1766069440095,-200.0,0.00021672,2]
[399008911,1766069440105,-4373.00417738,0.00021918,2]
[399008912,1766069440116,-506.37642362,0.00021918,2]
[399008913,1766069440128,-120.619399,0.00021918,2]
[399008914,1766069440138,-168.0,0.00022001,2]
[399008915,1766069440147,-244.64,0.00022114,2]
[399008916,1766069440156,-3292.0,0.00022119,2]
[399008917,1766069440166,-1712.9847564,0.00022362,2]
[399008918,1766069440176,-1974.3712848,0.00022552,2]
[399008919,1766069440185,-244.64,0.00022746,2]
[399008920,1766069440195,-244.64,0.00023378,2]
[399008921,1766069440204,-1712.9847564,0.000238,2]
[399008922,1766069440213,-170.77,0.000239,14]
[399008923,1766069440223,-244.64,0.0002401,2]
[399008924,1766069440233,-1000.0,0.00024171,2]
[399008925,1766069440247,-2026.96534178,0.00024287,2]
[399008926,1766069440259,-2582.03465822,0.00024287,2]
[399008927,1766069440268,-3452.0,0.00024365,2]
[399008928,1766069440278,-165.0,0.000248,3]
[399008929,1766069440289,-1974.3712848,0.00024894,2]
[399008930,1766069440298,-6057.3364,0.00025885,2]
[399008931,1766069440308,-1240.88814824,0.00025985,3]
[399008933,1766069440320,-8117.35424924,0.00025985,3]
[399008935,1766069440336,-7797.00312763,0.00025985,3]
[399008937,1766069440349,-21742.42378279,0.00025985,3]
[399008940,1766069440359,-300.0,0.00025994,10]
[399008942,1766069440368,-300.0,0.00025994,10]
[399008944,1766069440378,-300.0,0.00025994,10]
[399008946,1766069440387,-500.0,0.00025994,2]
[399008948,1766069440396,-500.0,0.00025994,2]
[399008950,1766069440406,-500.0,0.00025994,2]
[399008952,1766069440415,-479.01929503,0.00025994,2]
[399008954,1766069440425,-513.57384765,0.00025994,2]
[399008956,1766069440435,-500.0,0.00025994,2]
[399008958,1766069440445,-500.0,0.00025994,2]
[399008960,1766069440455,-500.0,0.00025994,2]
[399008962,1766069440464,-500.0,0.00025994,2]
[399008964,1766069440474,-500.0,0.00025994,2]
[399008966,1766069440484,-261497.02584757,0.00025995,2]
[399008970,1766069440498,-2590.80063541,0.00025995,2]
[399008973,1766069440509,-11366.71743067,0.00025995,2]
[399008976,1766069440521,-844.27,0.00025995,2]
[399008978,1766069440533,-564.11572434,0.00025995,2]
[399008981,1766069440549,-2540.5043997,0.000228,5]
[399008983,1766069440560,-2490.84464804,0.000228,5]
[399008985,1766069440572,-493.65095226,0.000228,5]
[399008987,1766069440581,-6.34904774,0.00025995,2]
[399008990,1766069440593,-9368.11449333,0.00025995,2]
[399008992,1766069440605,-413.22446657,0.00025995,2]
[399008995,1766069440626,-2756.75168643,0.00025995,2]
[399008997,1766069440637,-445.80782165,0.00025995,2]
[399008999,1766069440649,-3167.60350434,0.00025995,2]
[399009057,1766069444255,-370.0,0.000215,2]
[399009058,1766069444265,-221.22,0.000222,3]
[399009059,1766069444287,-147.29323871,0.000222,3]
[399009060,1766069444303,-959.29771838,0.000222,3]
[399009061,1766069444322,-4197.18904291,0.000222,3]
[399009062,1766069444331,-15224.10417946,0.00025995,2]
[399009066,1766069445970,-5524.0,0.00025995,2]
[399009068,1766069445983,-14111.91169314,0.00025995,2]
[399009070,1766069445994,-24732.05426789,0.00025995,2]
[399009071,1766069446018,-695.29236772,0.00025995,2]
[399009072,1766069446182,-268645.79499189,0.00025995,2]
[399009073,1766069446194,-9535.13739471,0.00025995,2]
[399009074,1766069446205,-954.45988669,0.00025995,2]
[399009075,1766069446217,-136468.96546951,0.00025995,2]
[399009076,1766069446228,-1211.87913237,0.00025995,2]
[399009077,1766069446267,-117875.61995857,0.00025995,2]
[399009078,1766069446277,-1990.59070428,0.0002602,2]
[399009079,1766069446287,-500.0,0.0002612,2]
[399009080,1766069446296,-640.24385345,0.0002612,2]
[399009081,1766069446306,-208.5647437,0.0002612,2]
[399009082,1766069446316,-500.0,0.0002612,2]
[399009083,1766069446325,-500.0,0.0002612,2]
[399009084,1766069446335,-500.0,0.0002612,2]
[399009085,1766069446345,-500.0,0.0002612,2]
[399009086,1766069446355,-500.0,0.0002612,2]
[399009087,1766069446368,-500.0,0.0002612,2]
[399009088,1766069446379,-500.0,0.0002612,2]
[399009089,1766069446388,-500.0,0.0002612,2]
[399009090,1766069446398,-500.0,0.0002612,2]
[399009091,1766069446407,-500.0,0.0002612,2]
[399009092,1766069446416,-500.0,0.0002612,2]
[399009093,1766069446426,-322.6107,0.0002612,2]
[399009094,1766069446436,-165.0,0.000264,3]
[399009095,1766069446445,-6453.0,0.00026666,2]
[399009097,1766069446455,-169.23,0.00026676,2]
[399009099,1766069446464,-427.14,0.00026715,2]
[399009101,1766069446474,-1000.0,0.00026856,2]
[399009103,1766069446483,-1974.3712848,0.00027237,2]
[399009105,1766069446494,-3616.0,0.00027564,5]
[399009107,1766069446503,-1990.59070422,0.00027684,2]
[399009109,1766069446512,-581.43,0.00027833,2]
[399009111,1766069446522,-6712.0,0.00029279,2]
[399009113,1766069446532,-1990.59070422,0.00029349,2]
[399009115,1766069446541,-1000.0,0.00029542,2]
[399009117,1766069446551,-335.13,0.000302,25]
[399009119,1766069446560,-999.0,0.00030912,3]
[399009121,1766069446569,-500.0,0.00030928,14]
[399009123,1766069446579,-168.21,0.00031,30]
[399009125,1766069446589,-1990.59070422,0.00031013,2]
[399009127,1766069446598,-524.36,0.00031041,2]
[399009130,1766069446608,-1000.0,0.00032227,2]
[399009131,1766069446624,-1990.59070422,0.00032678,2]
[399009133,1766069446645,-160.01,0.00032735,120]
[399009136,1766069446655,-166.66,0.0003298,30]
[399009138,1766069446665,-169.23,0.00033165,2]
[399009140,1766069446674,-1000.0,0.00033322,2]
[399009142,1766069446683,-166.66,0.00033675,30]
[399009144,1766069446693,-279.98,0.0003385,30]
[399009146,1766069446703,-215.36888377,0.00034246,30]
[399009148,1766069446712,-1990.59070422,0.00034342,2]
[399009150,1766069446722,-166.66,0.00034369,30]
[399009152,1766069446731,-1474.95,0.00034613,2]
[399009154,1766069446741,-166.66,0.00035063,30]
[399009156,1766069446751,-166.66,0.00035758,30]
[399009158,1766069446764,-1990.59070422,0.00036007,2]
[399009160,1766069446774,-884.71,0.00036019,5]
[399009162,1766069446784,-166.66,0.00036452,30]
[399009164,1766069446794,-150.0,0.00036962,7]
[399009166,1766069446804,-157.03066254,0.00036962,7]
[399009168,1766069446813,-150.0,0.00036962,7]
[399009170,1766069446823,-150.0,0.00036962,7]
[399009172,1766069446832,-150.0,0.00036962,7]
[399009174,1766069446841,-150.78435921,0.00036962,7]
[399009176,1766069446851,-150.0,0.00036962,7]
[399009178,1766069446861,-150.0,0.00036962,7]
[399009180,1766069446871,-150.0,0.00036962,7]
[399009182,1766069446883,-153.8674487,0.00036962,7]
[399009184,1766069446894,-150.0,0.00036962,7]
[399009186,1766069446904,-150.0,0.00036962,7]
[399009188,1766069446913,-150.0,0.00036962,7]
[399009190,1766069446923,-165.0,0.00037,120]
[399009192,1766069446934,-150.0,0.00037304,7]
[399009194,1766069446943,-150.0,0.00037646,7]
[399009196,1766069446953,-1990.59070422,0.00037671,2]
[399009198,1766069446966,-300.0,0.00037819,10]
[399009200,1766069446976,-150.0,0.00037988,7]
[399009202,1766069446986,-3056.6722,0.00038256,2]
[399009204,1766069446996,-300.0,0.00038296,2]
[399009206,1766069447005,-300.0,0.00038296,2]
[399009208,1766069447015,-300.0,0.00038296,2]
[399009210,1766069447025,-408.59072517,0.00038296,2]
[399009212,1766069447034,-150.0,0.00038331,7]
[399009214,1766069447043,-885.59,0.00038356,5]
[399009216,1766069447053,-865.31,0.00038356,5]
[399009218,1766069447062,-857.93,0.00038356,5]
[399009220,1766069447071,-866.44,0.00038356,5]
[399009222,1766069447080,-864.84,0.00038356,5]
[399009224,1766069447090,-864.38,0.00038356,5]
[399009225,1766069447099,-861.19,0.00038356,5]
[399009226,1766069447109,-858.4,0.00038356,5]
[399009227,1766069447118,-864.13,0.00038356,5]
[399009228,1766069447128,-874.03,0.00038356,5]
[399009229,1766069447138,-877.22,0.00038356,5]
[399009230,1766069447148,-870.85,0.00038356,5]
[399009231,1766069447161,-500.0,0.00038356,120]
[399009232,1766069447171,-494.69,0.00038356,30]
[399009233,1766069447180,-303.0,0.00038356,120]
[399009234,1766069447190,-303.0,0.00038356,120]
[399009235,1766069447200,-303.0,0.00038356,120]
[399009236,1766069447211,-303.0,0.00038356,120]
[399009237,1766069447220,-303.0,0.00038356,120]
[399009238,1766069447230,-303.0,0.00038356,120]
[399009239,1766069447239,-303.0,0.00038356,120]
[399009240,1766069447250,-303.0,0.00038356,120]
[399009241,1766069447260,-303.0,0.00038356,120]
[399009242,1766069447270,-303.0,0.00038356,120]
[399009243,1766069447280,-303.0,0.00038356,120]
[399009244,1766069447290,-303.0,0.00038356,120]
[399009245,1766069447300,-303.0,0.00038356,120]
[399009246,1766069447310,-303.0,0.00038356,120]
[399009247,1766069447320,-303.0,0.00038356,120]
[399009248,1766069447330,-303.0,0.00038356,120]
[399009249,1766069447339,-303.0,0.00038356,120]
[399009250,1766069447348,-303.0,0.00038356,120]
[399009251,1766069447358,-701.0,0.00038356,120]
[399009252,1766069447368,-701.0,0.00038356,120]
[399009253,1766069447378,-701.0,0.00038356,120]
[399009254,1766069447387,-701.0,0.00038356,120]
[399009255,1766069447397,-701.0,0.00038356,120]
[399009256,1766069447406,-701.0,0.00038356,120]
[399009257,1766069447415,-701.0,0.00038356,120]
[399009258,1766069447425,-701.0,0.00038356,120]
[399009259,1766069447434,-701.0,0.00038356,120]
[399009260,1766069447443,-701.0,0.00038356,120]
[399009261,1766069447452,-701.0,0.00038356,120]
[399009262,1766069447461,-701.0,0.00038356,120]
[399009263,1766069447470,-701.0,0.00038356,120]
[399009264,1766069447480,-300.0,0.00038356,120]
[399009265,1766069447490,-300.0,0.00038356,120]
[399009266,1766069447501,-300.0,0.00038356,120]
[399009267,1766069447510,-300.0,0.00038356,120]
[399009268,1766069447520,-300.0,0.00038356,120]
[399009269,1766069447529,-300.0,0.00038356,120]
[399009270,1766069447541,-300.0,0.00038356,120]
[399009271,1766069447552,-300.0,0.00038356,120]
[399009272,1766069447563,-300.0,0.00038356,120]
[399009273,1766069447572,-300.0,0.00038356,120]
[399009274,1766069447581,-300.0,0.00038356,120]
[399009275,1766069447591,-300.0,0.00038356,120]
[399009276,1766069447600,-300.0,0.00038356,120]
[399009277,1766069447609,-300.0,0.00038356,120]
[399009278,1766069447618,-300.0,0.00038356,120]
[399009279,1766069447628,-433.0,0.00038356,120]
[399009280,1766069447638,-433.0,0.00038356,120]
[399009281,1766069447649,-433.0,0.00038356,120]
[399009282,1766069447659,-433.0,0.00038356,120]
[399009283,1766069447669,-433.0,0.00038356,120]
[399009284,1766069447678,-433.0,0.00038356,120]
[399009285,1766069447688,-433.0,0.00038356,120]
[399009286,1766069447698,-433.0,0.00038356,120]
[399009287,1766069447708,-433.0,0.00038356,120]
[399009288,1766069447718,-433.0,0.00038356,120]
[399009289,1766069447727,-300.0,0.00038356,120]
[399009290,1766069447737,-300.0,0.00038356,120]
[399009291,1766069447748,-300.0,0.00038356,120]
[399009292,1766069447758,-300.0,0.00038356,120]
[399009293,1766069447768,-300.0,0.00038356,120]
[399009294,1766069447777,-300.0,0.00038356,120]
[399009295,1766069447788,-300.0,0.00038356,120]
[399009296,1766069447798,-300.0,0.00038356,120]
[399009297,1766069447808,-300.0,0.00038356,120]
[399009298,1766069447818,-300.0,0.00038356,120]
[399009299,1766069447828,-300.0,0.00038356,120]
[399009300,1766069447838,-300.0,0.00038356,120]
[399009301,1766069447848,-300.0,0.00038356,120]
[399009302,1766069447857,-300.0,0.00038356,120]
[399009303,1766069447868,-300.0,0.00038356,120]
[399009304,1766069447878,-600.0,0.00038356,30]
[399009305,1766069447891,-500.0,0.00038493,120]
[399009306,1766069447901,-445.74,0.0003863,120]
[399009307,1766069447912,-494.69,0.0003863,30]
[399009308,1766069447921,-150.0,0.00038673,7]
[399009309,1766069447933,-279.98,0.00038685,120]
[399009310,1766069447942,-444.749999,0.000388,14]
[399009311,1766069447952,-494.69,0.00038904,30]
[399009312,1766069447963,-600.0,0.00038904,30]
[399009313,1766069447972,-250.0,0.00039,45]
[399009314,1766069447982,-150.0,0.00039015,7]
[399009315,1766069447991,-494.69,0.00039178,30]
[399009316,1766069448006,-1990.59070422,0.00039336,2]
[399009317,1766069448016,-150.0,0.00039357,7]
[399009318,1766069448026,-627.53,0.00039452,30]
[399009319,1766069448035,-581.43,0.00039614,2]
[399009320,1766069448046,-169.23,0.00039654,2]
[399009321,1766069448056,-150.0,0.000397,7]
[399009322,1766069448066,-150.0,0.00039726,120]
[399009323,1766069448076,-1971.19201724,0.00039862,2]
[399009324,1766069448086,-300.0,0.00039945,120]
[399009325,1766069448096,-2799.26,0.00039989,120]
[399009326,1766069448107,-173.91728075,0.0003999,7]
[399009327,1766069448116,-300.0,0.00039999,10]
[399009328,1766069448126,-160.32338679,0.0004,2]
[399009329,1766069448136,-49999.99999909,0.0004,30]
[399009330,1766069448145,-600.0,0.0004,30]
[399009331,1766069448155,-214.55,0.0004,120]
[399009332,1766069448165,-150.0,0.00040042,7]
[399009333,1766069448175,-450.0,0.00040164,120]
[399009334,1766069448190,-429.1,0.00040219,120]
[399009335,1766069448201,-600.0,0.00040383,120]
[399009336,1766069448211,-150.0,0.00040384,7]
[399009337,1766069448220,-500.0,0.00040431,60]
[399009338,1766069448230,-152.0,0.00040431,3]
[399009339,1766069448240,-643.65,0.00040438,120]
[399009340,1766069448254,-435.67,0.000405,120]
[399009341,1766069448264,-2264.5848,0.000406,2]
[399009342,1766069448274,-1000.0,0.000406,2]
[399009343,1766069448284,-398.01,0.00040602,120]
[399009344,1766069448294,-858.2,0.00040657,120]
[399009345,1766069448304,-500.0,0.00040684,120]
[399009346,1766069448313,-500.0,0.00040684,120]
[399009347,1766069448323,-500.0,0.00040684,120]
[399009348,1766069448343,-167.92919184,0.00040684,120]
[399009349,1766069448354,-217.57229798,0.00040697,14]
[399009350,1766069448364,-5000.0,0.000407,90]
[399009351,1766069448374,-5000.0,0.000407,90]
[399009352,1766069448384,-5000.0,0.000407,90]
[399009353,1766069448395,-5000.0,0.000407,90]
[399009354,1766069448404,-2849.67558,0.000407,90]
[399009355,1766069448414,-5648.0,0.000407,117]
[399009356,1766069448424,-150.0,0.00040726,7]
[399009357,1766069448434,-200.0,0.00040766,20]
[399009358,1766069448444,-1072.75,0.00040876,120]